Cogmind - Beta 13 @@@ ROGUE MODE // 2024.08.05 @ 07:30:02 Player: Gokudera ElPsyCongroo Result: Destroyed by Y-45 Defender with Beam Rifle Performance ------------- Evolutions (0) 0 Regions Visited (4) 800 Robots Destroyed (32) 160 Value Destroyed (599) 599 Prototype IDs (15) 300 Alien Tech Used (0) 0 Bonus (11) 11 TOTAL SCORE: 1870 Bonus ------- High Alert Combat Kills 11 Cogmind --------- Core Integrity 0/250 Matter 242/300 Energy 265/265 System Corruption 0% Temperature Cool (17) Movement Treading (325) Ox2 Location -8/Recycling Parts ------- > --- POWER (1) -------- Improved Ion Engine > --- PROPULSION (2) --- Light Treads Armored Treads > --- UTILITY (2) ------ Huge Storage Unit Hardened Light Armor Plating > --- WEAPON (2) ------- Battle Rifle Minigun > --- INVENTORY (25) --- Deuterium Engine Light Treads Improved Treads Improved Sensor Array Improved Signal Interpreter Targeting Computer Heavy Armor Plating Scrap Shield Shield Generator Authchip [Storage] Authchip [Armor] Rainbow Chip Heavy Assault Rifle Heavy Assault Rifle Light Cannon Flak Cannon Flak Cannon Grenade Launcher Makeshift Hammer Peak State ------------ > --- POWER ------------ Improved Ion Engine > --- PROPULSION ------- Light Treads Armored Treads > --- UTILITY ---------- Huge Storage Unit Hardened Light Armor Plating > --- WEAPON ----------- Battle Rifle Makeshift Hammer > --- INVENTORY -------- Deuterium Engine Light Treads Improved Treads Improved Sensor Array Improved Signal Interpreter Targeting Computer Heavy Armor Plating Scrap Shield Shield Generator Authchip [Storage] Authchip [Armor] Rainbow Chip Heavy Assault Rifle Heavy Assault Rifle Minigun Light Cannon Flak Cannon Flak Cannon Grenade Launcher [Rating: 21] Favorites ----------- Power Improved Ion Engine Engine Improved Ion Engine Propulsion Light Treads Treads Light Treads Leg Aluminum Leg Wheel Subdweller Monowheel Utility Medium Storage Unit Device Seismic Detector Storage Medium Storage Unit Protection Scrap Shield Weapon Light Cannon Energy Gun Small Laser Ballistic Gun Light Assault Rifle Ballistic Cannon Light Cannon Launcher Grenade Launcher Special Weapon Mining Laser Impact Weapon Makeshift Hammer Build | -11 -10 -10 -10 -8 ------- Run | Yrd Mat Min Sub Rec Slots Evolved . | . . . . . Power . | . . . . . Propulsion . | . . . . . Utility . | . . . . . Weapon . | . . . . . Parts Attached 98 | 4 20 13 47 14 Power 6 | . 1 2 2 1 Engine 6 | . 1 2 2 1 Core . | . . . . . Reactor . | . . . . . Propulsion 19 | 3 2 3 8 3 Treads 16 | 2 2 3 6 3 Leg . | . . . . . Wheel 3 | 1 . . 2 . Hover . | . . . . . Flight . | . . . . . Utility 24 | 1 4 5 12 2 Device 10 | 1 2 2 5 . Storage 2 | . 1 . . 1 Processor . | . . . . . Hackware . | . . . . . Protection 12 | . 1 3 7 1 Artifact . | . . . . . Weapon 49 | . 13 3 25 8 Energy Gun 1 | . . . 1 . Energy Cannon . | . . . . . Ballistic Gun 24 | . 8 2 11 3 Ballistic Cannon 9 | . 2 1 4 2 Launcher 2 | . . . 2 . Special Weapon 3 | . 3 . . . Impact Weapon 10 | . . . 7 3 Slashing Weapon . | . . . . . Piercing Weapon . | . . . . . Special Melee Weapon . | . . . . . Unidentified Prototypes . | . . . . . Parts Lost 4 | . . 4 . . Power 1 | . . 1 . . Propulsion 1 | . . 1 . . Utility 1 | . . 1 . . Weapon 1 | . . 1 . . Highest Loss Streak 4 | . . 4 . . To Critical Strikes . | . . . . . Average Slot Usage (%) 95 | . 100 98 91 92 Engine 13 | . 14 13 14 14 Treads 27 | . 28 28 27 28 Device 6 | . 12 12 2 . Storage 10 | . 14 14 6 10 Protection 6 | . 1 1 11 10 Ballistic Gun 20 | . 19 13 22 24 Ballistic Cannon 6 | . 7 14 4 2 Naked Turns . | . . . . . Heaviest Build 97 | 13 22 26 31 97 Greatest Support 40 | 40 40 40 40 40 Greatest Overweight (x) 2 | . . . 1 2 Average Overweight (x) . | . . . . 1 Largest Inventory Capacity 25 | 8 10 10 10 25 Average Capacity 10 | 8 9 10 7 20 Most Carried 21 | 8 10 10 10 21 Average Carried 9 | 6 9 9 7 14 Final Capacity 25 | 8 10 10 5 25 Final Carried 21 | 7 10 10 5 21 Class Distribution -------------------- 58% | Scavenger-Mutant 41% | Mutant Dominant Class ---------------- Mutant | -10/Materials Scavenger-Mutant | -10/Mines Scavenger-Mutant | -10/Subcaves Mutant | -8/Recycling Resources | -11 -10 -10 -10 -8 ----------- Run | Yrd Mat Min Sub Rec Matter Collected 1959 | 230 523 200 644 362 Remotely . | . . . . . Salvage Created 955 | 25 531 27 234 138 Parts 58 | 4 31 3 13 7 Haulers Intercepted 2 | . 2 . . . Recyclers Shooed 2 | 1 . . . 1 Parts Field Recycled . | . . . . . Retrieved Matter . | . . . . . Parts Self-Destructed 18 | . . . 18 . Prevented . | . . . . . Kills | -11 -10 -10 -10 -8 ------- Run | Yrd Mat Min Sub Rec Combat Hostiles Destroyed 21 | . 11 1 8 1 Melee 1 | . . . . 1 Guns 11 | . 8 . 3 . Cannons 6 | . 3 1 2 . AOE 3 | . . . 3 . Classes Destroyed 9 | 1 6 . 1 1 Worker 2 | . 1 1 . . Tunneler 2 | 1 . 1 . . Hauler 2 | . 2 . . . Recycler 2 | . 1 . . 1 Watcher 3 | . 3 . . . Swarmer 9 | . 6 . 3 . Grunt 5 | . 5 . . . Sentry 1 | . . . . 1 Subdweller 5 | . . . 5 . Best Kill Streak 3 | 1 3 1 3 1 Combat Bots Only 3 | . 3 1 3 1 Max Kills in Single Turn 2 | 1 2 1 2 1 Gunslinging . | . . . . . Exploded 2 | . . . 2 . Melee 1 | . . . . 1 Uniques/NPCs Destroyed 1 | . . 1 . . YI-UF0 (-10/Mines) Combat | -11 -10 -10 -10 -8 -------- Run | Yrd Mat Min Sub Rec Hostile Shots Fired 118 | . 29 26 60 3 Missed 34 | . 3 9 21 1 Damage Taken 1459 | . 270 595 566 28 Core 253 | . 49 33 157 14 Absorbed by Shields . | . . . . . Regen/Repaired (Parts) 87 | . 87 . . . Core Remaining (%) 100 | 100 . . . . Volleys Fired 161 | 2 59 14 83 3 Largest 2 | 2 2 2 2 2 Hottest 135 | 60 135 58 60 60 Shots Fired 261 | 4 116 26 109 6 Gun 165 | 4 98 12 47 4 Cannon 84 | . 15 14 53 2 Launcher 9 | . . . 9 . Special 3 | . 3 . . . Kinetic 246 | 2 112 26 100 6 Thermal 6 | 2 4 . . . Explosive 9 | . . . 9 . Electromagnetic . | . . . . . Robot Hit Streak 13 | 4 6 9 13 4 Robot Miss Streak 5 | . 5 3 3 1 Penetration Max . | . . . . . Secondary Targets 1 | . 1 . . . Max Gunslinging Chain 1 | . 1 . . . Shots Hit Robots 129 | 4 66 18 36 5 Core Hits 51 | 1 31 5 12 2 Critical Kills 1 | . 1 . . . Critical Parts Destroyed 1 | . 1 . . . Critical Strikes 4 | . 2 . 2 . Destroy 4 | . 2 . 2 . Melee Attacks 18 | . . . 12 6 Impact 18 | . . . 12 6 Slashing . | . . . . . Piercing . | . . . . . Sneak Attacks 1 | . . . . 1 Combat Hostiles 1 | . . . . 1 Follow-up Attacks . | . . . . . Damage Inflicted 1959 | 38 738 236 788 159 Guns 1181 | 38 549 73 474 47 Cannons 439 | . 189 162 69 19 Explosions 245 | . . . 245 . Melee 93 | . . . . 93 Ramming 1 | . . 1 . . Kinetic 1586 | 15 727 235 543 66 Thermal 34 | 23 11 . . . Explosive 245 | . . . 245 . Electromagnetic . | . . . . . Impact 93 | . . . . 93 Slashing . | . . . . . Piercing . | . . . . . Highest Corruption . | . . . . . Average Corruption . | . . . . . Corruption Purged . | . . . . . Corruption Blocked . | . . . . . Overload Shots . | . . . . . Overflow Damage 64 | . . . 64 . Projectiles . | . . . . . Explosions 64 | . . . 64 . Melee . | . . . . . Knockbacks 1 | . . . 1 . Impact . | . . . . . Kinetic 1 | . . . 1 . Secondary . | . . . . . Self-Inflicted Damage 28 | . . . 28 . Shots 1 | . . . 1 . Rammed 1 | . . 1 . . Targets Rammed 1 | . . 1 . . Kicked . | . . . . . Crushed . | . . . . . Highest Temperature 72 | 20 37 72 . 25 Average Temperature 16 | 15 13 27 . 13 Received Heat Transfer 237 | . 96 . 132 9 Siege Activations . | . . . . . Robots Corrupted . | . . . . . Combat Hostiles . | . . . . . Parts Fried . | . . . . . Impact Corruptions . | . . . . . Robots Melted . | . . . . . Combat Hostiles . | . . . . . Parts Melted . | . . . . . Heat Transferred 75 | 50 25 . . . Parts Sabotaged . | . . . . . Parts Stolen . | . . . . . Parts Stripped . | . . . . . Power Chain Reactions . | . . . . . Alert | -11 -10 -10 -10 -8 ------- Run | Yrd Mat Min Sub Rec Peak Influence 642 | 5 259 23 . 642 Initial 613 | . 3 8 . 613 Average 162 | 4 68 3 . 469 Maximum Alert Level 2 | . 1 . . 2 Low Security (%) 67 | 100 89 100 . . Level 1 12 | . 10 . . 30 Level 2 19 | . . . . 69 Level 3 . | . . . . . Level 4 . | . . . . . Level 5 . | . . . . . High Security . | . . . . . Max Security . | . . . . . Squads Dispatched 2 | . 2 . . . Investigation 2 | . 2 . . . Extermination . | . . . . . Reinforcement . | . . . . . Assault . | . . . . . Garrison . | . . . . . Intercept . | . . . . . Searches Triggered . | . . . . . Construction Impeded . | . . . . . Haulers Reinforced . | . . . . . Active Scanning Responses . | . . . . . Cargo Convoy Interrupts . | . . . . . Stealth | -11 -10 -10 -10 -8 --------- Run | Yrd Mat Min Sub Rec Distress Signals . | . . . . . Communications Jammed . | . . . . . Distress Signals . | . . . . . Times Spotted 79 | . 19 1 58 1 Peak Tracking Total 6 | . 4 1 6 1 Tactical Retreats 9 | . 2 . 7 . Traps | -11 -10 -10 -10 -8 ------- Run | Yrd Mat Min Sub Rec Traps Triggered 1 | . . . 1 . Indirectly . | . . . . . Trap Hack Attempts . | . . . . . Triggered . | . . . . . Disarmed . | . . . . . Reprogrammed . | . . . . . Reused . | . . . . . Traps Extracted . | . . . . . Installed . | . . . . . Triggered . | . . . . . Machines | -11 -10 -10 -10 -8 ---------- Run | Yrd Mat Min Sub Rec Machines Disabled 2 | . . . 2 . Max in Single Turn 1 | . . . 1 . Machines Repaired . | . . . . . Machines Dismantled . | . . . . . Machines Sabotaged . | . . . . . Overloaded Fab Kills . | . . . . . Hacking | -11 -10 -10 -10 -8 --------- Run | Yrd Mat Min Sub Rec Machines Accessed 11 | . 6 . 2 3 Terminals 6 | . 3 . . 3 Fabricators . | . . . . . Repair Stations 1 | . 1 . . . Recycling Units 2 | . 2 . . . Scanalyzers . | . . . . . Garrison Access . | . . . . . Total Hacks 43 | . 21 . 10 12 Successful 28 | . 12 . 10 6 Failed 15 | . 9 . . 6 Catastrophic 1 | . . . . 1 Database Lockouts . | . . . . . Manual 14 | . 8 . . 6 Terminals 25 | . 13 . . 12 Fabricators . | . . . . . Repair Stations 3 | . 3 . . . Recycling Units 5 | . 5 . . . Scanalyzers . | . . . . . Garrison Access . | . . . . . Terminal Hacks 20 | . 6 . 10 4 Record 9 | . . . 9 . Part Schematic 3 | . . . . 3 Robot Analysis 2 | . 2 . . . Prototype ID Bank 3 | . 2 . . 1 Unreport Threat 1 | . 1 . . . Locate Traps 1 | . 1 . . . Derelict Proto ID Bank 1 | . . . 1 . Fabricator Hacks . | . . . . . Repair Station Hacks 2 | . 2 . . . Scan Component 1 | . 1 . . . Repair 1 | . 1 . . . Recycling Unit Hacks 2 | . 2 . . . Report Inventory 2 | . 2 . . . Scanalyzer . | . . . . . Garrison Access Hacks . | . . . . . Unauthorized Hacks 4 | . 2 . . 2 Terminals 2 | . . . . 2 Botnet 2 | . . . . 2 Fabricators . | . . . . . Repair Stations . | . . . . . Recycling Units 2 | . 2 . . . Tunnel 2 | . 2 . . . Scanalyzers . | . . . . . Garrison Access . | . . . . . Data Cores Recovered . | . . . . . Used . | . . . . . Hacking Detections 8 | . 5 . . 3 Full Trace Events 1 | . . . . 1 Feedback Events . | . . . . . Feedback Blocked . | . . . . . Robot Schematics Acquired . | . . . . . Robots Built . | . . . . . Authchips . | . . . . . Time . | . . . . . Total Robot Build Rating . | . . . . . Part Schematics Acquired 3 | . . . . 3 Parts Built . | . . . . . Authchips . | . . . . . Time . | . . . . . Total Part Build Rating . | . . . . . Parts Repaired 1 | . 1 . . . Time 13 | . 13 . . . Parts Recycled . | . . . . . Recycled Matter . | . . . . . Retrieved Matter . | . . . . . Retrieved Components . | . . . . . Parts Scanalyzed . | . . . . . Part Schematics Acquired . | . . . . . Parts Damaged . | . . . . . Bothacking | -11 -10 -10 -10 -8 ------------ Run | Yrd Mat Min Sub Rec Used RIF Installer . | . . . . . Robots Hacked . | . . . . . Non-combat . | . . . . . Combat . | . . . . . Robot Hacks Applied . | . . . . . Relay Couplers Released . | . . . . . Fabnet Peak Effective % . | . . . . . Robots Rewired . | . . . . . Allies Hacked . | . . . . . Hacks Repelled . | . . . . . Allies | -11 -10 -10 -10 -8 -------- Run | Yrd Mat Min Sub Rec Total Allies . | . . . . . Largest Group . | . . . . . Highest-Rated Group . | . . . . . Highest-Rated Ally . | . . . . . Total Orders . | . . . . . Ally Attacks . | . . . . . Total Damage . | . . . . . Kills . | . . . . . Allies Corrupted . | . . . . . Allies Melted . | . . . . . Intel | -11 -10 -10 -10 -8 ------- Run | Yrd Mat Min Sub Rec Robot Analysis Total 2 | . 2 . . . Derelict Logs Recovered 3 | . . 3 . . Drone Launches . | . . . . . Drone Recoveries . | . . . . . Exploration | -11 -10 -10 -10 -8 ------------- Run | Yrd Mat Min Sub Rec Turns Passed 6441 | 29 1665 1206 2387 1154 Spaces Moved 3265 | 9 874 705 1271 406 Core . | . . . . . Treads 3264 | 9 874 705 1270 406 Legs . | . . . . . Wheels 1 | . . . 1 . Hover . | . . . . . Flight . | . . . . . Fastest Speed 120 | 160 160 160 120 160 Average Speed 173 | 160 160 160 160 269 Slowest Speed 325 | 160 160 160 240 325 Overloaded Moves . | . . . . . Propulsion Burnouts . | . . . . . Robots Hopped . | . . . . . Cave-ins Triggered . | . . . . . Exploration Rate (%) 61 | 2 85 99 64 55 Regions Visited 4 Branch Regions 3 Pre-discovered Areas 4 | . 2 2 . . Known Exits Taken . | . . . . . Unknown Exits Taken 4 | 1 1 1 1 . Scrap Searched 1 | . . 1 . . Spaces Dug 39 | . 3 . 32 4 Terrain Destroyed 80 | . 3 . 73 4 Melee 10 | . . . 6 4 Projectile 6 | . 3 . 3 . AOE 64 | . . . 64 . Terrain Rammed . | . . . . . Walls Destroyed . | . . . . . Machines Disabled . | . . . . . Actions | -11 -10 -10 -10 -8 --------- Run | Yrd Mat Min Sub Rec Total 3768 | 21 1042 759 1494 452 Wait 129 | . 54 17 55 3 Move 3261 | 8 873 704 1270 406 Hop . | . . . . . Pick Up 40 | 4 15 4 2 15 Fast Attach 14 | 1 2 1 10 . Attach 6 | . . 3 1 2 Detach 1 | . 1 . . . Swap 78 | 3 18 9 36 12 Drop 55 | 3 20 6 21 5 Fire 161 | 2 59 14 83 3 Melee 18 | . . . 12 6 Ram . | . . . . . Kick . | . . . . . Crush 1 | . . 1 . . Escape Stasis . | . . . . . Rewire . | . . . . . Trap . | . . . . . Miscellaneous 4 | . . . 4 . Route ------- -11/Scrapyard -10/Materials (discovered 4 exits: [*Mat x3] / [*Min]) -10/Mines (discovered 3 exits: [*Mat x2] / *Sub) -10/Subcaves (discovered 2 exits: [*Mat] / *Rec) -8/Recycling History --------- Turn | Location | Event 12 | -11/Scrapyard | Discovered new exit (range 3) 30 | -11/Scrapyard | Entered Materials 147 | -10/Materials | Discovered new exit (range 5) 323 | -10/Materials | Build established: Mutant 697 | -10/Materials | Discovered new exit (range 8) 1003 | -10/Materials | Repaired Assault Rifle 1124 | -10/Materials | Build established: Scavenger-Mutant 1283 | -10/Materials | Discovered new exit (range 4) 1488 | -10/Materials | Discovered new exit (range 13) 1593 | -10/Materials | Build established: Mutant 1695 | -10/Materials | Entered Mines 1819 | -10/Mines | Discovered new exit (range 11) 1821 | -10/Mines | Destroyed YI-UF0 1852 | -10/Mines | Lost 4 parts (1p1n1u1w) 2065 | -10/Mines | Discovered new exit (range 8) 2110 | -10/Mines | A weapon hastily lodged in a ceiling crevice suddenly fell to the ground 2208 | -10/Mines | Build established: Scavenger-Mutant 2237 | -10/Mines | Joined a pair of Derelicts in attacking an 0b10 outpost 2381 | -10/Mines | Learned Materials emergency access door positions 2614 | -10/Mines | Discovered new exit (range 6) 2708 | -10/Mines | Learned location of Storage (-8) 2717 | -10/Mines | Learned Materials machine intel 2901 | -10/Mines | Entered Subcaves 3324 | -10/Subcaves | Visited Clippyterm 3853 | -10/Subcaves | Core integrity fell below 50% 3943 | -10/Subcaves | Core integrity fell below 20% 4123 | -10/Subcaves | Discovered new exit (range 15) 4506 | -10/Subcaves | Ambushed by Subdweller buried in earth 4669 | -10/Subcaves | Visited 4L-MR0's lab 4696 | -10/Subcaves | Found Rainbow Chip 4741 | -10/Subcaves | Discovered new exit (range 8) 5261 | -10/Subcaves | Ambushed by Subdweller buried in earth 5288 | -10/Subcaves | Entered Recycling 5792 | -8/Recycling | Build established: Mutant 6442 | -8/Recycling | Destroyed by Y-45 Defender with Beam Rifle Last Messages --------------- Trojan loaded successfully. Testing... Terminal linked with 1 system. Awaiting botnet instructions. >>Schematic(Hcp. Storage Unit) Downloading schematic... Hcp. Storage Unit Rating: 1 Schematic downloaded. >>Prototypes Downloading prototype IDs... Cld. Deuterium Engine Hvy. Particle Gun >>Schematic(Hvy. Armor Plating) Downloading schematic... Hvy. Armor Plating Rating: 3 Schematic downloaded. 06222_ Acquired Corrupted Authchip [Armor]. 06436_ Y-45 Defender springs to life. Map ----- +----------------------------------------------------+ | ????????????????????????????????????????????????# | | ?????????????????????????????????????????????????# | | ?????????????????????????????????????????????????# | | ?????????????????????????????????????????????????# | | ?????????????????????????????????????????????????# | | ?????????????????????????????????????????????????# | | ?????????????????????????????????????????????????# | | ?????????????????????????????????????????????????# | | ?????????????????????????????????????????????????# | | ?????????????????????????????????????????????????? | | ???????????????????????????????????????????????### | | ???????????????????????????????????????????????# | | ???????????????????????????????????????????????# | | ???????????????????????????????????????????????# | | ???????????????????????????????????????????????# | | ????????????????? ??????????????????????????# | | ?????????????? ??????????????????????????#= | | ?????????????? ??????????????????????????# | | ??????????????# ??????????????????????????### | | ??????????????# ????????????????????????????? | | ?????????????## ??????????????????????????### | | ?????????????# ???#####??????+#??????????# | | ?????????????# #??# #?????? #??????????# | | ??????????#### #?? Y ####### ##???#"""??# | | ??????????# #??# #####"Y"??# | | ??????????# #??#@ u ??+ | | ??????????# #### #??# | | ??????????# #??# | | ??????????# ####+# | | ????????### | | ????? | | ????????+##+## | | ?????????????# | | ?????????????# r ##?# | | ?????????????+ u #??# | | ?????????????# #+#### | | ?????????????### #! + | | ???????????????# #########+####### # # ###### | | ???????????????# ???# ! # # ! /## #####?? | | ???????????????#????# ! # # ## ###T### | | ????????????????????# ! !# #! ## ## | | ????????????????????# # # [=[# # | | ????????????????????# ! + + *! + + """" | | ????????????????????# ! ! # # ] # # """" | | ????????????????????# ! # # ## ## """" | | ????????????????????# !! # # ## ## """" | | ????????????????????# # # |## + | | ????????????????????# ! # # ## ## | | ????????????????????# # # ## ## | | ????????????????????# ! ! # ####### ## " | +----------------------------------------------------+ Best States ------------- Heat Dissipation 25 Energy Generation 12 Energy Capacity 265 Matter Stores 300 Matter Capacity 300 Sight Range 16 Terrain Scan Density 10 Armor Coverage 800 Evasion (%) 40 Recoil Reduction 2 Authchip Count 2 Item Schematics ----------------- Imp. Medium Treads | -8/Recycling | Hacked Hcp. Storage Unit | -8/Recycling | Hacked Hvy. Armor Plating | -8/Recycling | Hacked Robot Schematics ------------------ None Fabricated ------------ Nothing Alien Tech Used ----------------- None Achievements -------------- None Challenges ------------ None Game ------ Seed HeartBarrageShredder Manual? 0 Play Time 00:58:24 Cumulative 90.0 hours Start 2024.08.05 @ 06:22:12 End 2024.08.05 @ 07:30:02 Sessions 1 Manual Loads 0 Difficulty Rogue Special Mode None Game No. 32 Rogue 32 Adventurer 0 Explorer 0 Win Type - Total 1 Types 1/0/0/0/0/0/0/0/0 Lore% 37 Gallery% 52 Achievement% 37 Wizard Run 0 Options --------- Layout 0 ASCII 0 Keyboard 1 Movement Numpad Keybinds 1 Fullscreen 2 Font 24/Terminus Map View 76x50 Zoom Use 0% Tactical HUD 1 Map Filters NONE Filters NONE Steam 1 RUN: 03dbcaaa-f3c5-4771-8c8a-6f51ffddaec9